Cogmind - Beta 16.1 @@@ ROGUE MODE // 2026.04.12 @ 01:53:06 Player: Xintrosi Result: Destroyed by Striker with Plasma Lance Performance ------------- Evolutions (7) 3500 Regions Visited (18) 3600 Robots Destroyed (221) 1105 Value Destroyed (9082) 9082 Prototype IDs (116) 2320 Alien Tech Used (6) 1200 Bonus (7286) 7286 TOTAL SCORE: 28093 Bonus ------- High Alert Combat Kills 204 Follower Combat Kills 1438 Forged Quantum Companion 2000 Registered with UFD 300 Met Optimus in HQ 500 Met Data Miner 300 Built Enhanced Grunts 300 Met R17 at Cetus 500 Met R17 at Research 2000 Met Optimus at Protoforge 1000 Friendly Fire -1256 Cogmind --------- Core Integrity 0/1300 Matter 300/300 Energy 350/350 System Corruption 19% Temperature Cool (0) Movement Walking (96) Location -3/Protoforge Parts ------- > --- POWER (3) -------- Improved Quantum Reactor > --- PROPULSION (5) --- Flexi-carbon Leg Improved Thunder Leg Enhanced Biometal Leg Experimental VSS Leg Experimental VSS Leg (fused) > --- UTILITY (10) ----- High-capacity Storage Unit Advanced Weight Redist. System Experimental Optical Array Improved Core Shielding Makeshift Medium Armor Plating Makeshift Medium Armor Plating Centrium Light Armor Plating Centrium Medium Armor Plating (fused) Makeshift Thermal Plating > --- WEAPON (4) ------- Superquantum Companion > --- INVENTORY (20) --- Light Particle Reactor Micro Antimatter Reactor Flexi-carbon Leg Flexi-carbon Leg Flexi-carbon Leg Flexi-carbon Leg Advanced Terrain Scanner Graphene Brace Advanced Plasma Cannon UFD Drillbomb Peak State ------------ > --- POWER ------------ Light Particle Reactor Improved Quantum Reactor > --- PROPULSION ------- Flexi-carbon Leg Improved Thunder Leg Enhanced Biometal Leg Experimental VSS Leg Experimental VSS Leg > --- UTILITY ---------- High-capacity Storage Unit Advanced Weight Redist. System Experimental Optical Array Improved Core Shielding Makeshift Medium Armor Plating Makeshift Medium Armor Plating Centrium Light Armor Plating Centrium Medium Armor Plating Phase Armor > --- WEAPON ----------- Superquantum Companion > --- INVENTORY -------- Micro Antimatter Reactor Flexi-carbon Leg Flexi-carbon Leg Flexi-carbon Leg Flexi-carbon Leg Advanced Terrain Scanner Makeshift Thermal Plating Graphene Brace Advanced Plasma Cannon UFD Drillbomb [Rating: 163] Favorites ----------- Power Improved Ion Engine Engine Improved Ion Engine Power Core Micro Nuclear Core Reactor Light Particle Reactor Propulsion Light Treads Treads Light Treads Leg Flexi-carbon Leg Wheel Compact Wheel Hover Unit Improved Gyrokinetic Inverter Utility High-capacity Storage Unit Device Deep Structural Scanner Storage High-capacity Storage Unit Processor Advanced Melee Analysis Suite Hackware Hacking Suite Protection Layered Medium Armor Plating Artifact Phase Armor Weapon Companion Sword Energy Gun Medium Laser Energy Cannon Advanced Plasma Cannon Ballistic Gun Enhanced Autogun Launcher Improved Grenade Launcher Special Weapon Molecular Deconstructor Impact Weapon Mace Slashing Weapon Companion Sword Build | -11 -10 -10 -9 -9 -9 -9 -6 -6 -6 -6 -5 -5 -5 -5 -4 -3 -3 -3 ------- Run | Yrd Mat Min Mat Sto Rec Scr Fac Low Low Dat Pro Fac Ext Cet Fac Res Qua Frg Slots Evolved 14 | . . . 2 . . . 6 . . . . 2 . . 2 2 . . Power 2 | . . . . . . . 1 . . . . . . . . 1 . . Propulsion 3 | . . . . . . . 2 . . . . 1 . . . . . . Utility 8 | . . . 1 . . . 3 . . . . 1 . . 2 1 . . Weapon 1 | . . . 1 . . . . . . . . . . . . . . . Parts Attached 236 | 7 8 3 17 6 3 11 9 6 2 . 4 23 22 13 22 51 6 23 Power 43 | 1 2 . 3 . . 1 2 2 . . . 4 6 3 3 12 2 2 Engine 14 | 1 1 . 3 . . 1 1 2 . . . 2 2 1 . . . . Core 9 | . 1 . . . . . 1 . . . . 2 4 . 1 . . . Reactor 20 | . . . . . . . . . . . . . . 2 2 12 2 2 Propulsion 71 | 2 2 2 5 1 1 4 1 2 . . 1 8 7 6 4 21 . 4 Treads 19 | 2 2 1 5 1 1 2 1 2 . . 1 1 . . . . . . Leg 49 | . . . . . . 2 . . . . . 7 7 6 4 19 . 4 Wheel 2 | . . 1 . . . . . . . . . . . . . 1 . . Hover 1 | . . . . . . . . . . . . . . . . 1 . . Flight . | . . . . . . . . . . . . . . . . . . . Utility 91 | 2 2 . 4 2 1 3 6 1 1 . 1 7 6 4 14 18 4 15 Device 38 | 1 1 . . . . 1 3 . . . . 6 3 2 8 9 2 2 Storage 6 | 1 1 . . . . 1 . . . . . . . 1 1 1 . . Processor 14 | . . . . 1 . 1 2 1 . . 1 1 . . 2 1 . 4 Hackware 3 | . . . 1 . . . 1 . . . . . . . . 1 . . Protection 29 | . . . 3 1 1 . . . 1 . . . 3 1 3 6 1 9 Artifact 1 | . . . . . . . . . . . . . . . . . 1 . Weapon 31 | 2 2 1 5 3 1 3 . 1 1 . 2 4 3 . 1 . . 2 Energy Gun 6 | 2 . . . 2 . . . . . . . 2 . . . . . . Energy Cannon 1 | . . . . . . . . . . . . . . . . . . 1 Ballistic Gun 10 | . 2 1 4 . 1 1 . . 1 . . . . . . . . . Ballistic Cannon . | . . . . . . . . . . . . . . . . . . . Launcher 4 | . . . 1 . . . . 1 . . 1 . . . 1 . . . Special Weapon 1 | . . . . . . . . . . . 1 . . . . . . . Impact Weapon 5 | . . . . 1 . 1 . . . . . 2 1 . . . . . Slashing Weapon 4 | . . . . . . 1 . . . . . . 2 . . . . 1 Piercing Weapon . | . . . . . . . . . . . . . . . . . . . Special Melee Weapon . | . . . . . . . . . . . . . . . . . . . Unidentified Prototypes 26 | . . . 1 1 . 1 . . 1 . 1 2 . 2 2 . 3 12 Corrupted Parts 1 | . . . . . . . . . . . . 1 . . . . . . System Corruption 6 | . . . . . . . . . . . . 6 . . . . . . Parts Lost 105 | . 1 6 2 2 . . 1 9 . . 1 19 10 5 13 21 4 11 Power 28 | . 1 1 1 . . . . 1 . . 1 3 4 1 3 7 2 3 Propulsion 30 | . . 2 . . . . . 3 . . . 10 1 2 2 6 1 3 Utility 36 | . . 1 . . . . 1 4 . . . 4 3 2 8 7 1 5 Weapon 11 | . . 2 1 2 . . . 1 . . . 2 2 . . 1 . . Highest Loss Streak 18 | . 1 5 1 1 . . 1 9 . . 1 18 4 3 4 12 3 5 To Critical Strikes 1 | . . . . . . . . . . . . . . 1 . . . . Average Backups 13 | 1 6 7 12 14 14 16 17 17 17 18 19 16 17 15 4 9 19 10 Power 1 | . 1 1 . 1 1 1 1 2 3 3 3 2 2 1 . . 2 1 Propulsion 4 | . 2 1 3 5 3 3 3 3 3 3 4 4 7 5 2 5 8 4 Utility 3 | . 1 2 4 5 4 5 5 3 3 4 4 3 3 5 . 2 5 2 Weapon 3 | . 1 2 3 2 4 5 7 8 7 8 7 6 3 2 1 . 1 1 Tool/Special . | . . . . . . . . . . . . . . . . . . . Unused Backups 18 | . 1 . 2 . . . . 2 . . . 1 1 9 . . 1 1 Power 1 | . . . . . . . . . . . . . . 1 . . . . Propulsion 4 | . . . . . . . . . . . . . 1 3 . . . . Utility 5 | . . . . . . . . . . . . . . 3 . . 1 1 Weapon 8 | . 1 . 2 . . . . 2 . . . 1 . 2 . . . . Tool/Special . | . . . . . . . . . . . . . . . . . . . Average Slot Usage (%) 90 | . 99 95 99 98 100 97 98 95 94 93 93 90 92 91 81 75 84 76 Engine 6 | . 10 13 10 11 11 10 12 8 12 12 7 4 4 7 . . . . Core 1 | . 3 . . . . . . 4 . . 4 4 5 . 1 . . . Reactor 3 | . . . . . . . . . . . . . . 3 7 11 12 9 Treads 12 | . 28 18 21 22 22 16 25 24 25 25 25 17 . . . . . . Leg 10 | . . . . . . 4 . 1 . . . 7 27 26 24 18 21 21 Device 10 | . 14 14 . . . 6 11 12 6 6 6 12 15 16 17 12 21 11 Storage 7 | . 14 14 11 11 11 10 6 6 6 6 6 5 5 5 4 2 4 4 Processor 9 | . . . . 3 11 11 7 13 18 18 18 16 11 11 16 13 13 8 Hackware 1 | . . . 11 7 . . 4 . . . . . . . . . . . Protection 5 | . . . 10 11 11 4 5 2 5 6 6 2 4 5 5 6 3 10 Ballistic Gun 10 | . 19 25 31 29 32 21 . . . . . . . . . . . . Impact Weapon 3 | . . . . . . 4 12 12 12 12 11 7 7 2 . . . . Slashing Weapon 4 | . . . . . . 5 6 6 6 6 6 5 7 11 5 4 4 3 Peak Build Rating 163 | 7 11 9 24 24 16 32 42 52 53 52 70 88 100 90 97 117 136 163 Average Rating 63 | 5 8 8 22 21 15 22 38 45 52 52 54 77 83 82 87 96 116 147 On Entrance 49 | . 7 8 8 23 16 16 31 41 52 52 52 70 80 87 86 86 114 118 Avg Prop Armor Cover (%) 7 | . . 11 . . . . . 6 . . . . . . . 3 . 3 Naked Turns . | . . . . . . . . . . . . . . . . . . . Heaviest Build 148 | 15 30 30 46 43 36 57 74 76 74 72 73 74 82 83 65 129 124 148 Greatest Support 140 | 40 40 40 40 40 40 40 80 96 96 96 99 127 101 140 134 126 114 139 Greatest Overweight (x) 3 | . . 1 1 1 . 1 1 1 . . . 2 . 1 . 3 1 1 Average Overweight (x) . | . . . . . . . . . . . . . . . . . . . Largest Inventory Capacity 20 | 8 15 15 15 15 15 20 20 20 20 20 20 20 20 20 5 20 20 20 Average Capacity 17 | 7 10 15 15 15 15 19 20 20 20 20 20 20 20 15 5 13 20 20 Most Carried 20 | 2 10 11 15 15 15 20 20 20 19 18 20 20 20 20 5 20 20 20 Average Carried 14 | 1 6 7 12 14 14 16 17 17 17 18 19 16 18 14 4 9 19 15 Final Capacity 20 | 8 15 15 15 15 15 20 20 20 20 20 20 20 20 5 5 20 20 20 Final Carried 20 | 2 10 6 15 14 15 20 20 16 18 18 20 14 20 5 2 20 18 19 Scrap Suit Usage (%) 2 | . . . . . . . . . . . . . . . . . . 14 Parts Cannibalized 3 | . . . . . . . . . . . . . . . . . . 3 Class Distribution -------------------- 23% | Scavenger-Gladiator 22% | Scavenger-Mutant 13% | Mutant 12% | Scavenger-Gunner 10% | Scavenger-Assassin 6% | Scavenger-Tank 4% | Gladiator 3% | Derelict-Mutant Dominant Class ---------------- Mutant | -10/Materials Mutant | -10/Mines Scavenger-Tank | -9/Materials Scavenger-Tank | -9/Storage Scavenger-Gunner | -9/Recycling Scavenger-Gunner | -9/Scraptown Scavenger-Gladiator | -6/Factory Scavenger-Gladiator | -6/Lower Caves Scavenger-Gladiator | -6/Lower Caves Scavenger-Gladiator | -6/Data Miner Scavenger-Gladiator | -5/Proximity Caves Scavenger-Gladiator | -5/Factory Scavenger-Gladiator | -5/Extension Scavenger-Gladiator | -5/Cetus Scavenger-Mutant | -4/Factory Scavenger-Mutant | -3/Research Scavenger-Assassin | -3/Quarantine Scavenger-Mutant | -3/Protoforge Resources | -11 -10 -10 -9 -9 -9 -9 -6 -6 -6 -6 -5 -5 -5 -5 -4 -3 -3 -3 ----------- Run | Yrd Mat Min Mat Sto Rec Scr Fac Low Low Dat Pro Fac Ext Cet Fac Res Qua Frg Matter Collected 6707 | 225 485 133 1240 257 198 286 385 372 57 . 57 386 490 326 179 686 183 762 Remotely . | . . . . . . . . . . . . . . . . . . . Salvage Created 9828 | 21 832 54 1145 520 158 . 594 462 . . 82 1184 1167 181 989 1283 365 791 Parts 483 | 2 49 6 75 31 11 . 39 22 . . 5 51 36 12 31 45 26 42 Haulers Intercepted 5 | . . . 2 . . . 1 . . . . 1 . . . 1 . . Recyclers Shooed 4 | . . . . . 1 . . . . . . 2 . . . 1 . . Parts Field Recycled . | . . . . . . . . . . . . . . . . . . . Retrieved Matter . | . . . . . . . . . . . . . . . . . . . Parts Self-Destructed 19 | . . . . . . . . 16 . . 3 . . . . . . . Prevented 1 | . . . . . . . . 1 . . . . . . . . . . Parts Restored . | . . . . . . . . . . . . . . . . . . . Kills | -11 -10 -10 -9 -9 -9 -9 -6 -6 -6 -6 -5 -5 -5 -5 -4 -3 -3 -3 ------- Run | Yrd Mat Min Mat Sto Rec Scr Fac Low Low Dat Pro Fac Ext Cet Fac Res Qua Frg Combat Hostiles Destroyed 174 | . 17 3 31 11 3 . 8 15 . . 3 13 16 2 14 20 7 11 Melee 73 | . . . . . . . 5 3 . . 1 10 14 . 12 12 7 9 Guns 62 | . 17 3 31 8 3 . . . . . . . . . . . . . Cannons 2 | . . . . . . . . . . . . . . . . . . 2 AOE 33 | . . . . 3 . . 3 10 . . 2 2 1 2 2 8 . . Classes Destroyed 21 | 1 6 . 3 1 . . 2 . . . 1 1 1 . 1 1 . 3 Worker 9 | . . . 1 . . . 3 . . . . 1 2 . 2 . . . Builder 5 | . 1 . . 1 . . 2 . . . . . . . . . . 1 Tunneler 4 | 1 . . . . . . 1 . . . . . 1 . . 1 . . Hauler 5 | . . . 2 . . . 1 . . . . 1 . . . 1 . . Recycler 12 | . 2 . 1 1 . . 2 . . . . 3 2 . 1 . . . Operator 3 | . 1 . 1 . . . . . . . . 1 . . . . . . Drone 3 | . . . . . . . . . . . 2 . . . . . . 1 Watcher 7 | . 1 . 3 1 . . . . . . . 1 . 1 . . . . Swarmer 38 | . 3 3 16 . . . 2 8 . . . 2 1 . . . 3 . Cutter 3 | . . . . . . . 3 . . . . . . . . . . . Saboteur 1 | . . . . . . . . . . . . . . . . . . 1 Grunt 79 | . 14 . 9 9 . . . 5 . . . 5 12 . 7 17 . 1 Brawler 1 | . . . . . . . . . . . . . . . 1 . . . Duelist 3 | . . . . 1 . . . . . . . 1 . . . 1 . . Protector 1 | . . . . . . . . . . . . . . . . . . 1 Sentry 18 | . . . 6 1 3 . 1 1 . . 1 . 2 . 2 . . 1 Demolisher 1 | . . . . . . . . . . . . . . . . 1 . . Hunter 5 | . . . . . . . . . . . . 2 . . 2 1 . . Programmer 12 | . . . . . . . 2 1 . . . 3 . . 2 . 4 . Behemoth 1 | . . . . . . . . . . . . . 1 . . . . . Cetus Guard 2 | . . . . . . . . . . . . . . 2 . . . . Enhanced Grunt 1 | . . . . . . . . . . . . . . 1 . . . . Hotshot 2 | . . . . . . . . . . . . . . . . . . 2 Decapitator 2 | . . . . . . . . . . . . . . . . . . 2 Executioner 2 | . . . . . . . . . . . . . . . . . . 2 Best Kill Streak 11 | 1 4 3 7 11 2 . 11 3 . . 2 3 4 3 5 7 3 2 Combat Bots Only 8 | . 3 3 6 8 2 . 3 3 . . 2 3 4 2 4 7 3 2 Max Kills in Single Turn 3 | 1 1 1 2 2 1 . 3 2 . . 1 1 3 2 2 3 1 2 Gunslinging 1 | . . . 1 . . . . . . . . . . . . . . . Exploded 3 | . . . . 1 . . 2 2 . . 1 1 1 2 2 3 . . Melee 2 | . . . . . . . 1 1 . . 1 1 1 . 1 1 1 2 Uniques/NPCs Destroyed 1 | . . . . . . . . . . . . . . 1 . . . . A7 (-5/Cetus) Combat | -11 -10 -10 -9 -9 -9 -9 -6 -6 -6 -6 -5 -5 -5 -5 -4 -3 -3 -3 -------- Run | Yrd Mat Min Mat Sto Rec Scr Fac Low Low Dat Pro Fac Ext Cet Fac Res Qua Frg Hostile Shots Fired 1502 | . 83 53 95 20 14 . 47 88 . . 11 193 125 40 171 280 91 191 Missed 475 | . 23 10 32 7 . . 12 25 . . . 60 36 13 51 107 29 70 Deflected 4 | . . . . . . . . . . . . . . . . . . 4 Hits 1027 | . 60 43 63 13 14 . 35 63 . . 11 133 89 27 120 173 62 121 Melee 32 | . . . . 2 . . 5 . . . . 4 1 . 5 10 . 5 Projectile 995 | . 60 43 63 11 14 . 30 63 . . 11 129 88 27 115 163 62 116 AOE 17 | . . 8 . . . . . . . . . . 1 . . 8 . . Critical Strikes 53 | . . 1 . . 2 . 1 1 . . . 9 2 5 8 8 2 14 Actively Blocked 13 | . . . . . . . . . . . . . . . . . 2 11 Part Disruptions 4 | . . 1 . . . . . . . . . 1 . . . . 1 1 Damage Taken 19170 | . 686 658 624 254 197 . 543 838 . . 269 2374 1703 775 2286 3412 930 3621 Core 2780 | . 102 130 69 40 44 . 50 66 . . 29 487 194 86 181 556 95 651 Absorbed by Shields 2533 | . . . . . . . 174 188 . . . . 425 104 220 999 423 . Redirected to Shielding 41 | . . . . . . . . . . . . . . . . . . 41 Ignored by Resistances 17 | . . . . . . . . . . . . . . . . . . 17 Regen/Repaired (Parts) 299 | . 151 . . . . . 122 . . . . . . . . . . 26 Core Remaining (%) 59 | 100 . 7 . . . 61 . . . . 82 . . 23 84 . . . Volleys Fired 288 | 6 70 9 82 26 9 . 2 11 . . 2 20 18 6 6 6 . 15 Largest 3 | 2 2 2 3 3 3 . 1 1 . . 1 1 1 1 1 1 . 1 Hottest 100 | 100 100 40 75 85 65 . 36 43 . . 33 55 43 43 49 49 . 98 Shots Fired 590 | 12 140 17 240 67 27 . 2 11 . . 2 21 18 6 6 6 . 15 Gun 503 | 12 140 17 237 64 27 . . . . . . 6 . . . . . . Cannon 15 | . . . . . . . . . . . . . . . . . . 15 Launcher 51 | . . . 3 3 . . 2 11 . . 2 7 5 6 6 6 . . Special 21 | . . . . . . . . . . . . 8 13 . . . . . Kinetic 431 | . 90 17 237 60 27 . . . . . . . . . . . . . Thermal 81 | 12 50 . . 4 . . . . . . . . . . . . . 15 Explosive 51 | . . . 3 3 . . 2 11 . . 2 7 5 6 6 6 . . Electromagnetic 6 | . . . . . . . . . . . . 6 . . . . . . Robot Hit Streak 14 | 3 13 2 12 10 10 . 1 3 . . . 8 6 12 14 . . . Robot Miss Streak 7 | 2 4 6 7 6 1 . 1 1 . . . 4 1 . 1 . . . Penetration Max . | . . . . . . . . . . . . . . . . . . . Secondary Targets 7 | . . 1 6 . . . . . . . . . . . . . . . Max Gunslinging Chain 1 | . . 1 1 . . . . . . . . . . . . . . . Autonomous 12 | . . . . . . . . . . . . . . . . . . 12 Shots Hit Robots 688 | 8 86 5 121 40 20 . 12 20 . . 8 53 99 16 62 65 23 50 Core Hits 360 | 2 42 6 48 20 8 . 21 22 . . 4 31 32 20 30 47 10 17 Critical Kills 6 | . 1 . . . . . . . . . . 3 2 . . . . . Critical Parts Destroyed 7 | . . . 2 . . . . 2 . . . 1 2 . . . . . Critical Strikes 43 | . 5 . 2 . . . . 2 . . . 6 7 1 2 10 4 4 Burn 4 | . 4 . . . . . . . . . . . . . . . . . Destroy 3 | . 1 . 2 . . . . . . . . . . . . . . . Smash 10 | . . . . . . . . 2 . . . 4 4 . . . . . Sever 2 | . . . . . . . . . . . . . 1 1 . . . . Melee Attacks 574 | . . . . 1 . . 53 20 3 . 12 67 104 13 79 98 54 70 Impact 66 | . . . . 1 . . 16 6 1 . 3 18 20 1 . . . . Slashing 508 | . . . . . . . 37 14 2 . 9 49 84 12 79 98 54 70 Piercing . | . . . . . . . . . . . . . . . . . . . Sneak Attacks 37 | . . . . . . . 1 . . . . 7 5 7 6 5 1 5 Combat Hostiles 4 | . . . . . . . . . . . . 1 1 . 1 . 1 . Follow-up Attacks 54 | . . . . . . . 5 6 . . 1 7 24 . 1 2 1 7 Damage Inflicted 31381 | 112 1115 105 2096 831 254 . 1407 1549 . . 429 3019 5060 1282 3648 4451 1002 5021 Guns 4337 | 112 1115 79 2096 559 254 . . . . . . 122 . . . . . . Cannons 980 | . . . . . . . . . . . . . . . . . . 980 Explosions 6608 | . . . . 272 . . 942 933 . . 115 537 689 672 828 1620 . . Melee 19426 | . . . . . . . 465 616 . . 314 2360 4371 610 2820 2827 1002 4041 Ramming 30 | . . 26 . . . . . . . . . . . . . 4 . . Kinetic 3683 | . 717 79 2096 537 254 . . . . . . . . . . . . . Thermal 673 | 112 398 . . 22 . . . . . . . 141 . . . . . . Explosive 6392 | . . . . 272 . . 867 933 . . 115 396 689 672 828 1620 . . Electromagnetic 197 | . . . . . . . 75 . . . . 122 . . . . . . Impact 1759 | . . . . . . . 132 196 . . 30 620 781 . . . . . Slashing 17667 | . . . . . . . 333 420 . . 284 1740 3590 610 2820 2827 1002 4041 Piercing . | . . . . . . . . . . . . . . . . . . . Phasic 980 | . . . . . . . . . . . . . . . . . . 980 Highest Corruption 19 | . . . . . . . 2 2 2 2 2 12 13 13 7 2 13 19 Average Corruption 9 | . . . . . . . 2 2 2 2 2 7 12 13 6 2 6 17 Corruption Purged . | . . . . . . . . . . . . . . . . . . . Corruption Blocked . | . . . . . . . . . . . . . . . . . . . Effects 273 | . . . . . . . 1 13 4 2 5 16 42 18 17 12 17 126 Message Errors 66 | . . . . . . . . 2 1 2 2 5 11 1 4 2 6 30 Matter Fused 80 | . . . . . . . 1 2 1 . . 5 13 9 8 5 4 32 Heat Flow Errors 31 | . . . . . . . . 1 1 . . 1 4 1 . . 3 20 Energy Discharges 33 | . . . . . . . . 5 1 . 3 1 4 4 1 1 . 13 Parts Rejected 3 | . . . . . . . . . . . . . . 1 . . 1 1 Parts Fused 4 | . . . . . . . . . . . . . . . . . . 4 Data Loss (minor) 25 | . . . . . . . . 3 . . . 2 5 . 4 2 . 9 Data Loss (major) 13 | . . . . . . . . . . . . . 2 2 . 2 1 6 Misfires 1 | . . . . . . . . . . . . 1 . . . . . . Alerts 11 | . . . . . . . . . . . . 1 3 . . . 1 6 Misdirections 6 | . . . . . . . . . . . . . . . . . 1 5 Overload Shots . | . . . . . . . . . . . . . . . . . . . Overflow Damage 1620 | . . . . . . . 187 95 . . . 340 366 . 115 138 112 267 Projectiles 81 | . . . . . . . . . . . . . . . . . . 81 Explosions 269 | . . . . . . . 113 25 . . . 50 3 . 46 32 . . Melee 1270 | . . . . . . . 74 70 . . . 290 363 . 69 106 112 186 Knockbacks 7 | . . . . . . . . 1 . . . 4 2 . . . . . Impact 7 | . . . . . . . . 1 . . . 4 2 . . . . . Kinetic . | . . . . . . . . . . . . . . . . . . . Secondary . | . . . . . . . . . . . . . . . . . . . Self-Inflicted Damage 569 | . . 12 . 66 . . 145 54 . . . 100 . . . 192 . . Shots 15 | . . . . 2 . . 3 1 . . . 4 . . . 5 . . Rammed 5 | . . 5 . . . . . . . . . . . . . . . . Targets Rammed 6 | . . 5 . . . . . . . . . . . . . 1 . . Kicked 1 | . . . . . . . . . . . . . . . . 1 . . Crushed . | . . . . . . . . . . . . . . . . . . . Highest Temperature 312 | 117 300 . 312 288 111 . . 154 176 . . 101 218 69 8 196 194 244 Average Temperature 72 | 59 101 . 86 116 47 . . 39 92 . . 31 90 38 8 54 90 101 Received Heat Transfer 3266 | . 291 288 138 60 99 . 20 216 . . 45 198 495 54 386 601 9 366 Effects 4 | . . . 2 2 . . . . . . . . . . . . . . Energy Bleed 2 | . . . 2 . . . . . . . . . . . . . . . Interference 2 | . . . . 2 . . . . . . . . . . . . . . Siege Activations . | . . . . . . . . . . . . . . . . . . . Martial Activations . | . . . . . . . . . . . . . . . . . . . Shielding Activations . | . . . . . . . . . . . . . . . . . . . Robots Disrupted 5 | . . . . . . . . . . . . . 2 . 1 1 . 1 Combat Hostiles 5 | . . . . . . . . . . . . . 2 . 1 1 . 1 Robots Corrupted 4 | . . . . . . . . 2 . . . 1 1 . . . . . Combat Hostiles 4 | . . . . . . . . 2 . . . 1 1 . . . . . Parts Fried 4 | . . . . . . . . 1 . . . 2 1 . . . . . Impact Corruptions 11 | . . . . . . . 1 3 . . . 3 4 . . . . . Robots Melted . | . . . . . . . . . . . . . . . . . . . Combat Hostiles . | . . . . . . . . . . . . . . . . . . . Parts Melted 6 | . 2 . . . . . . . . . . . . . . 1 1 2 Heat Transferred 2013 | 333 1480 . . 50 . . . . . . . 150 . . . . . . Parts Sabotaged . | . . . . . . . . . . . . . . . . . . . Parts Stolen . | . . . . . . . . . . . . . . . . . . . Parts Stripped . | . . . . . . . . . . . . . . . . . . . Power Chain Reactions 1 | . . . . . . . . . . . . 1 . . . . . . Alert | -11 -10 -10 -9 -9 -9 -9 -6 -6 -6 -6 -5 -5 -5 -5 -4 -3 -3 -3 ------- Run | Yrd Mat Min Mat Sto Rec Scr Fac Low Low Dat Pro Fac Ext Cet Fac Res Qua Frg Maximum Alert Level 3 | . . . 2 2 . . 2 . . . . . 3 2 1 1 . . Low Security (%) 73 | 100 100 100 15 32 100 . 56 . . . . 100 27 . 27 97 100 100 Level 1 17 | . . . 60 32 . . 2 . . . . . 63 . 72 2 . . Level 2 9 | . . . 24 34 . . 41 . . . . . 9 100 . . . . Level 3 . | . . . . . . . . . . . . . . . . . . . Level 4 . | . . . . . . . . . . . . . . . . . . . Level 5 . | . . . . . . . . . . . . . . . . . . . High Security . | . . . . . . . . . . . . . . . . . . . Max Security . | . . . . . . . . . . . . . . . . . . . Peak Influence 798 | 5 164 101 502 435 195 . 452 . . . . 172 798 534 305 291 85 84 Initial 446 | . . 31 . 200 165 . . . . . . . 35 446 242 126 16 4 Average 122 | . 62 26 300 286 73 . 184 . . . . 35 271 476 219 57 23 5 Influence Increases 7523 | 5 551 70 1038 375 180 . 669 340 . . 30 524 1431 423 554 653 328 352 Destroy 0b10 Robot/C 4000 | . 340 60 620 220 60 . 160 300 . . 20 260 760 200 280 400 140 180 Destroy 0b10 Robot/NC 255 | 5 25 . 40 15 . . 45 . . . 10 35 30 10 15 10 . 15 Destroy Leader 644 | . 72 10 150 32 . . 52 40 . . . 44 62 10 60 72 20 20 Allied During Kill 560 | . . . . . . . . . . . . . 417 141 2 . . . Successful Hack 270 | . 21 . 72 . . . 35 . . . . 19 . . 18 12 24 69 Select Force Hacks 240 | . 60 . 30 30 120 . . . . . . . . . . . . . Disable Machine 570 | . . . 30 30 . . 315 . . . . 45 . . 45 30 75 . Destroy Structure 594 | . 3 . 36 33 . . 62 . . . . 106 12 62 134 84 24 38 Lose Combat Pursuer 390 | . 30 . 60 15 . . . . . . . 15 150 . . 45 45 30 Influence Decreases 7514 | 5 470 151 563 425 605 . 231 699 79 . 30 451 706 788 745 865 350 351 Entered New Map 1479 | . . 50 . 275 260 . . 163 16 . . . 38 352 191 116 14 4 Time Decay 4631 | 5 407 51 553 130 294 . 221 446 63 . 30 271 428 206 404 539 326 257 Lost Part 960 | . 10 50 10 20 . . 10 90 . . . 180 100 50 130 210 10 90 Lost Ally 340 | . . . . . . . . . . . . . 140 180 20 . . . Purge Threat 104 | . 53 . . . 51 . . . . . . . . . . . . . Squads Dispatched 60 | . 6 . 5 1 . . 8 . . . . 7 2 1 8 14 3 5 Investigation 28 | . 3 . 3 1 . . 3 . . . . 4 . 1 4 7 . 2 Extermination 8 | . . . . . . . 2 . . . . 1 . . 2 . 2 1 Reinforcement 20 | . 3 . 1 . . . 3 . . . . 2 2 . 2 4 1 2 Assault 1 | . . . 1 . . . . . . . . . . . . . . . Garrison 3 | . . . . . . . . . . . . . . . . 3 . . Intercept . | . . . . . . . . . . . . . . . . . . . Searches Triggered . | . . . . . . . . . . . . . . . . . . . Data Miner Redirects 3 | . . . . . . . . . . . . 2 . . 1 . . . Construction Impeded 2 | . . . . . . . . . . . . 1 1 . . . . . Haulers Reinforced 2 | . . . . . . . . . . . . . . . 1 1 . . Active Scanning Responses . | . . . . . . . . . . . . . . . . . . . Cargo Convoy Interrupts . | . . . . . . . . . . . . . . . . . . . Stealth | -11 -10 -10 -9 -9 -9 -9 -6 -6 -6 -6 -5 -5 -5 -5 -4 -3 -3 -3 --------- Run | Yrd Mat Min Mat Sto Rec Scr Fac Low Low Dat Pro Fac Ext Cet Fac Res Qua Frg Distress Signals 30 | . 4 . 3 1 . . . . . . . . 6 2 . 3 . 11 Communications Jammed . | . . . . . . . . . . . . . . . . . . . Distress Signals . | . . . . . . . . . . . . . . . . . . . Times Spotted 368 | . 35 16 46 13 3 . 16 13 . . 2 28 45 11 26 56 13 45 Peak Tracking Total 9 | . 4 5 8 6 2 . 3 4 . . 1 5 9 5 4 9 5 8 Tactical Retreats 35 | . 1 5 4 1 . . . . . . . 1 6 . 7 6 2 2 ECM-based Alert Blocks 20 | . . . . . . . . . . . . . . . 12 8 . . Traps | -11 -10 -10 -9 -9 -9 -9 -6 -6 -6 -6 -5 -5 -5 -5 -4 -3 -3 -3 ------- Run | Yrd Mat Min Mat Sto Rec Scr Fac Low Low Dat Pro Fac Ext Cet Fac Res Qua Frg Traps Triggered 16 | . 2 . 2 . . . 2 . . . . 1 . . 1 1 5 2 Indirectly . | . . . . . . . . . . . . . . . . . . . Trap Hack Attempts . | . . . . . . . . . . . . . . . . . . . Triggered . | . . . . . . . . . . . . . . . . . . . Disarmed . | . . . . . . . . . . . . . . . . . . . Reprogrammed . | . . . . . . . . . . . . . . . . . . . Reused . | . . . . . . . . . . . . . . . . . . . Traps Extracted . | . . . . . . . . . . . . . . . . . . . Installed . | . . . . . . . . . . . . . . . . . . . Triggered . | . . . . . . . . . . . . . . . . . . . Machines | -11 -10 -10 -9 -9 -9 -9 -6 -6 -6 -6 -5 -5 -5 -5 -4 -3 -3 -3 ---------- Run | Yrd Mat Min Mat Sto Rec Scr Fac Low Low Dat Pro Fac Ext Cet Fac Res Qua Frg Machines Disabled 42 | . 1 . 2 2 . . 21 . . . 1 3 . 1 3 2 5 1 Max in Single Turn 6 | . 1 . 1 1 . . 6 . . . 1 2 . . 1 1 1 1 Garrison Access 4 | . . . . . . . 2 . . . . 1 . . . 1 . . Energy Cycler 2 | . . . . . . . . . . . . . 2 . . . . . Machines Repaired . | . . . . . . . . . . . . . . . . . . . Machines Dismantled . | . . . . . . . . . . . . . . . . . . . Machines Sabotaged . | . . . . . . . . . . . . . . . . . . . Overloaded Fab Kills . | . . . . . . . . . . . . . . . . . . . Hacking | -11 -10 -10 -9 -9 -9 -9 -6 -6 -6 -6 -5 -5 -5 -5 -4 -3 -3 -3 --------- Run | Yrd Mat Min Mat Sto Rec Scr Fac Low Low Dat Pro Fac Ext Cet Fac Res Qua Frg Machines Accessed 81 | . 9 . 7 2 10 6 9 1 . 4 . 7 . 2 6 7 7 4 Terminals 33 | . 6 . 6 1 6 . 1 . . . . 2 . 2 2 . 6 1 Fabricators 2 | . . . . . . . . . . . . 1 . . . 1 . . Repair Stations 2 | . 1 . . . . . 1 . . . . . . . . . . . Recycling Units 23 | . 2 . 1 1 4 . 3 . . . . 3 . . 3 4 . 2 Scanalyzers 6 | . . . . . . . 2 . . . . . . . 1 1 1 1 Garrison Access 4 | . . . . . . . 2 . . . . 1 . . . 1 . . Total Hacks 238 | . 29 . 21 4 24 42 24 1 . 32 . 12 . 3 14 15 10 7 Successful 170 | . 23 . 11 1 15 42 16 1 . 32 . 8 . . 8 6 3 4 Failed 67 | . 6 . 10 3 9 . 7 . . . . 4 . 3 6 9 7 3 Catastrophic 16 | . 2 . 2 . 1 . . . . . . 1 . 2 1 2 3 2 Database Lockouts 1 | . . . . . . . 1 . . . . . . . . . . . Manual 97 | . 17 . 19 5 19 . 7 . . . 1 8 . 1 7 7 1 5 Terminals 88 | . 23 . 20 3 18 . 3 . . . . 5 . 3 4 . 8 1 Fabricators 7 | . . . . . . . . . . . . 2 . . . 5 . . Repair Stations 6 | . 4 . . . . . 2 . . . . . . . . . . . Recycling Units 40 | . 2 . 1 1 6 . 7 . . . . 4 . . 9 6 . 4 Scanalyzers 15 | . . . . . . . 9 . . . . . . . 1 1 2 2 Garrison Access 7 | . . . . . . . 3 . . . . 1 . . . 3 . . Terminal Hacks 91 | . 8 . 2 . 3 42 . 1 . 32 . . . . 1 . 2 . Record 54 | . . . . . . 41 . . . 11 . . . . . . 2 . Part Schematic 15 | . . . 2 . . . . . . 13 . . . . . . . . Robot Schematic 5 | . . . . . . . . . . 5 . . . . . . . . Prototype ID Bank 6 | . 3 . . . . . . . . 3 . . . . . . . . Open Door 2 | . . . . . . 1 . 1 . . . . . . . . . . Level Access Points 1 | . . . . . . . . . . . . . . . 1 . . . Emergency Access Points 1 | . 1 . . . . . . . . . . . . . . . . . Terminal Index 2 | . 1 . . . 1 . . . . . . . . . . . . . Unreport Threat 3 | . 2 . . . 1 . . . . . . . . . . . . . Zone Layout 2 | . 1 . . . 1 . . . . . . . . . . . . . Fabricator Hacks 4 | . . . . . . . . . . . . 2 . . . 2 . . Load Schematic 2 | . . . . . . . . . . . . 1 . . . 1 . . Build 2 | . . . . . . . . . . . . 1 . . . 1 . . Repair Station Hacks 6 | . 4 . . . . . 2 . . . . . . . . . . . Scan Component 3 | . 2 . . . . . 1 . . . . . . . . . . . Repair 3 | . 2 . . . . . 1 . . . . . . . . . . . Recycling Unit Hacks 6 | . . . . . . . 1 . . . . 1 . . 4 . . . Report Inventory 4 | . . . . . . . 1 . . . . 1 . . 2 . . . Retrieve Components 2 | . . . . . . . . . . . . . . . 2 . . . Scanalyzer 10 | . . . . . . . 7 . . . . . . . . . 1 2 Retrieve Study 10 | . . . . . . . 7 . . . . . . . . . 1 2 Garrison Access Hacks 3 | . . . . . . . 2 . . . . 1 . . . . . . Seal Access 3 | . . . . . . . 2 . . . . 1 . . . . . . Unauthorized Hacks 50 | . 11 . 9 1 12 . 4 . . . . 4 . . 3 4 . 2 Terminals 28 | . 9 . 8 . 8 . 1 . . . . 1 . . . . . 1 Botnet 12 | . 3 . 3 . 3 . 1 . . . . 1 . . . . . 1 Skim 16 | . 6 . 5 . 5 . . . . . . . . . . . . . Fabricators . | . . . . . . . . . . . . . . . . . . . Repair Stations . | . . . . . . . . . . . . . . . . . . . Recycling Units 22 | . 2 . 1 1 4 . 3 . . . . 3 . . 3 4 . 1 Tunnel 8 | . 2 . 1 1 4 . . . . . . . . . . . . . Fedlink 14 | . . . . . . . 3 . . . . 3 . . 3 4 . 1 Scanalyzers . | . . . . . . . . . . . . . . . . . . . Garrison Access . | . . . . . . . . . . . . . . . . . . . Data Cores Recovered 1 | . . . . . . . . . . . . 1 . . . . . . Used 1 | . . . . . . . . . . . . 1 . . . . . . Hacking Detections 47 | . 7 . 6 1 6 . 4 . . . . 3 . 2 4 4 6 4 Full Trace Events 5 | . . . . . . . . . . . . 1 . 1 . 2 . 1 Feedback Events . | . . . . . . . . . . . . . . . . . . . Feedback Blocked . | . . . . . . . . . . . . . . . . . . . Robot Schematics Acquired 5 | . . . . . . . . . . 5 . . . . . . . . Robots Built . | . . . . . . . . . . . . . . . . . . . Authchips . | . . . . . . . . . . . . . . . . . . . Time . | . . . . . . . . . . . . . . . . . . . Total Robot Build Rating . | . . . . . . . . . . . . . . . . . . . Part Schematics Acquired 15 | . . . 2 . . . . . . 13 . . . . . . . . Parts Built 2 | . . . . . . . . . . . . 1 . . . 1 . . Authchips . | . . . . . . . . . . . . . . . . . . . Time 194 | . . . . . . . . . . . . 169 . . . 25 . . Total Part Build Rating 7 | . . . . . . . . . . . . 6 . . . 1 . . Part Studies Acquired 10 | . . . . . . . 7 . . . . . . . . . 1 2 Parts Repaired 3 | . 2 . . . . . 1 . . . . . . . . . . . Time 65 | . 52 . . . . . 13 . . . . . . . . . . . Parts Recycled . | . . . . . . . . . . . . . . . . . . . Recycled Matter . | . . . . . . . . . . . . . . . . . . . Retrieved Matter . | . . . . . . . . . . . . . . . . . . . Retrieved Components 11 | . . . . . . . . . . . . . . . 11 . . . Parts Scanalyzed . | . . . . . . . . . . . . . . . . . . . Part Schematics Acquired . | . . . . . . . . . . . . . . . . . . . Parts Damaged . | . . . . . . . . . . . . . . . . . . . Bothacking | -11 -10 -10 -9 -9 -9 -9 -6 -6 -6 -6 -5 -5 -5 -5 -4 -3 -3 -3 ------------ Run | Yrd Mat Min Mat Sto Rec Scr Fac Low Low Dat Pro Fac Ext Cet Fac Res Qua Frg Used RIF Installer . | . . . . . . . . . . . . . . . . . . . Robots Hacked . | . . . . . . . . . . . . . . . . . . . Non-combat . | . . . . . . . . . . . . . . . . . . . Combat . | . . . . . . . . . . . . . . . . . . . Robot Hacks Applied . | . . . . . . . . . . . . . . . . . . . Relay Couplers Released 2 | . . . . . . . . . . . . . . . . 2 . . Machine Destruction 2 | . . . . . . . . . . . . . . . . 2 . . Fabnet Peak Effective % . | . . . . . . . . . . . . . . . . . . . Robots Rewired 14 | . . . . . . . . . . . . . 14 . . . . . Allies Hacked . | . . . . . . . . . . . . . . . . . . . Hacks Repelled . | . . . . . . . . . . . . . . . . . . . Allies | -11 -10 -10 -9 -9 -9 -9 -6 -6 -6 -6 -5 -5 -5 -5 -4 -3 -3 -3 -------- Run | Yrd Mat Min Mat Sto Rec Scr Fac Low Low Dat Pro Fac Ext Cet Fac Res Qua Frg Total Allies 22 | . . . . . . . . . . . . . 17 5 . . . . Largest Group 10 | . . . . . . . . . . . . . 10 8 2 . . . Highest-Rated Group 543 | . . . . . . . . . . . . . 379 543 125 . . . Highest-Rated Ally 159 | . . . . . . . . . . . . . 159 159 96 . . . Initial UFD Resources 98 | . . . . . . . 23 39 39 39 42 42 58 58 61 80 98 98 Total Orders 1 | . . . . . . . . . . . . . 1 . . . . . FOLLOW 1 | . . . . . . . . . . . . . 1 . . . . . Ally Attacks 224 | . . . . . . . . . . . . . 146 72 6 . . . Total Damage 6018 | . . . . . . . . . . . . . 3219 2301 498 . . . Kills 33 | . . . . . . . . . . . . . 23 9 1 . . . Allies Corrupted . | . . . . . . . . . . . . . . . . . . . Allies Melted 3 | . . . . . . . . . . . . . . . . . . 3 Intel | -11 -10 -10 -9 -9 -9 -9 -6 -6 -6 -6 -5 -5 -5 -5 -4 -3 -3 -3 ------- Run | Yrd Mat Min Mat Sto Rec Scr Fac Low Low Dat Pro Fac Ext Cet Fac Res Qua Frg Active Infowar (turns) 12819 | 6 559 101 . . . 41 913 1114 368 130 410 979 1049 437 973 1837 922 2980 Optics 2630 | . . . . . . . . . . . . . . . . . . 2630 Sensors 4919 | . . . . . . . 239 1114 368 130 410 631 . . 196 753 803 275 Terrain 1460 | . . . . . . . . . . . . . . . 440 471 . 549 Structural 3768 | . . . . . . 41 912 . . . . 900 1049 437 429 . . . Seismic 666 | 6 559 101 . . . . . . . . . . . . . . . . Machine Analysis 4043 | . . . . . . . . . . . . . . . 973 1837 922 311 Jamming 200 | . . . . . . . . . . . . . . . 200 . . . ECM 858 | . . . . . . . . . . . . . . . 673 185 . . Robot Analysis Total . | . . . . . . . . . . . . . . . . . . . Derelict Logs Recovered 5 | . . 1 . . . . . 1 1 . 2 . . . . . . . Drone Launches . | . . . . . . . . . . . . . . . . . . . Drone Recoveries . | . . . . . . . . . . . . . . . . . . . Exploration | -11 -10 -10 -9 -9 -9 -9 -6 -6 -6 -6 -5 -5 -5 -5 -4 -3 -3 -3 ------------- Run | Yrd Mat Min Mat Sto Rec Scr Fac Low Low Dat Pro Fac Ext Cet Fac Res Qua Frg Turns Passed 20535 | 111 1367 275 1733 276 1046 3566 921 1114 368 130 410 1020 1049 437 973 1837 922 2980 Spaces Moved 10944 | 54 612 181 707 99 494 1647 482 602 219 82 221 499 515 290 558 1013 574 2095 Core 148 | 4 . . . . . 144 . . . . . . . . . . . . Treads 5015 | 50 612 50 707 99 494 1095 482 602 219 82 221 302 . . . . . . Legs 5624 | . . . . . . 408 . . . . . 197 515 290 558 987 574 2095 Wheels 146 | . . 131 . . . . . . . . . . . . . 15 . . Hover 11 | . . . . . . . . . . . . . . . . 11 . . Flight . | . . . . . . . . . . . . . . . . . . . Fastest Speed 50 | 50 160 115 160 160 160 50 160 160 160 160 160 120 120 120 120 70 108 95 Average Speed 152 | 151 160 128 212 191 160 213 160 166 160 160 160 146 120 120 120 138 115 115 Slowest Speed 320 | 160 160 240 240 240 160 260 246 230 160 160 160 320 120 190 120 190 178 175 Overloaded Moves . | . . . . . . . . . . . . . . . . . . . Propulsion Burnouts . | . . . . . . . . . . . . . . . . . . . Robots Hopped . | . . . . . . . . . . . . . . . . . . . Potential Cave-ins . | . . . . . . . . . . . . . . . . . . . Cave-ins Triggered . | . . . . . . . . . . . . . . . . . . . Teleports 1 | . . . . . . . . . . . . . . . . . . 1 Exploration Rate (%) 48 | 5 92 32 63 20 96 79 18 83 39 68 43 15 72 69 14 30 50 41 Regions Visited 18 Branch Regions 12 Pre-discovered Areas 21 | . 3 . 5 1 6 4 1 . . 1 . . . . . . . . Known Exits Taken 13 | . 1 1 1 . . 1 1 1 1 1 1 1 . . 1 1 1 . Unknown Exits Taken 5 | 1 . . . 1 1 . . . . . . . 1 1 . . . . Scrap Searched 7 | . . . . . . 3 . 1 2 . 1 . . . . . . . Spaces Dug 146 | . . . 26 . . . 25 . 2 . 12 14 1 . 13 21 12 20 Terrain Destroyed 511 | . . . 38 33 . . 57 86 2 . 12 66 2 58 85 40 12 20 Melee 94 | . . . . . . . 22 . 2 . 1 11 1 . 13 21 12 11 Projectile 9 | . . . . . . . . . . . . . . . . . . 9 AOE 408 | . . . 38 33 . . 35 86 . . 11 55 1 58 72 19 . . Terrain Rammed . | . . . . . . . . . . . . . . . . . . . Walls Destroyed . | . . . . . . . . . . . . . . . . . . . Machines Disabled . | . . . . . . . . . . . . . . . . . . . Actions | -11 -10 -10 -9 -9 -9 -9 -6 -6 -6 -6 -5 -5 -5 -5 -4 -3 -3 -3 --------- Run | Yrd Mat Min Mat Sto Rec Scr Fac Low Low Dat Pro Fac Ext Cet Fac Res Qua Frg Total 13715 | 68 859 203 849 150 735 1704 564 676 233 81 264 698 820 354 742 1296 783 2636 Wait 1172 | . 154 1 24 9 222 1 19 25 5 . 20 73 32 9 54 96 115 313 Move 10926 | 53 611 180 706 98 493 1646 481 601 218 81 220 498 514 289 557 1012 573 2095 Hop . | . . . . . . . . . . . . . . . . . . . Pick Up 98 | 2 7 2 6 1 2 17 6 3 2 . 3 14 10 3 3 5 5 7 Fast Attach 140 | 7 4 . 4 2 1 10 3 2 1 . 2 6 11 8 14 33 12 20 Attach 94 | . 1 5 3 2 . . 6 8 2 . 2 20 6 3 7 2 6 21 Detach 61 | . 2 . 2 1 1 2 . 1 2 . 3 2 5 2 1 5 2 30 Swap 137 | . 6 . 17 7 3 10 9 9 1 . 1 6 9 9 9 26 5 10 Drop 124 | . 4 1 5 3 4 18 1 2 . . 2 8 11 14 12 14 7 18 Fire 288 | 6 70 9 82 26 9 . 2 11 . . 2 20 18 6 6 6 . 15 Melee 489 | . . . . 1 . . 37 14 2 . 9 51 74 11 78 96 53 63 Ram 3 | . . 3 . . . . . . . . . . . . . . . . Kick 1 | . . . . . . . . . . . . . . . . 1 . . Crush 2 | . . 2 . . . . . . . . . . . . . . . . Escape Stasis 5 | . . . . . . . . . . . . . . . . . 5 . Rewire 131 | . . . . . . . . . . . . . 130 . 1 . . . Trap . | . . . . . . . . . . . . . . . . . . . Miscellaneous 44 | . . . . . . . . . . . . . . . . . . 44 Route ------- -11/Scrapyard -10/Materials (discovered 6 exits: *Mat x3 / *Min x2 / Sub) -10/Mines (discovered 2 exits: *Mat / Sub) -9/Materials (discovered 7 exits: *Mat x3 / [*Min x2] / *Sto x2) -9/Storage -9/Recycling (discovered 2 exits: *Fac / *Scr) -9/Scraptown (discovered 2 exits: *Fac x2) -6/Factory (discovered 6 exits: Fac x4 / *Low x2) -6/Lower Caves -6/Lower Caves -6/Data Miner -5/Proximity Caves -5/Factory (discovered 3 exits: Upp x2 / *Ext) -5/Extension (discovered 3 exits: *Fac x2 / *Cet) -5/Cetus (discovered 2 exits: *Fac / [*Arc]) -4/Factory (discovered 6 exits: *Res x4 / Upp x2) -3/Research (discovered 3 exits: *Res x2 / *Qua) -3/Quarantine (discovered 3 exits: *Res / *Sec / *Frg) -3/Protoforge History --------- Turn | Location | Event 10 | -11/Scrapyard | Discovered new exit (range 16) 112 | -11/Scrapyard | Entered Materials 125 | -10/Materials | Discovered new exit (range 16) 314 | -10/Materials | Build established: Mutant 524 | -10/Materials | Discovered new exit (range 8) 639 | -10/Materials | Discovered new exit (range 9) 823 | -10/Materials | Discovered new exit (range 6) 1034 | -10/Materials | Discovered new exit (range 13) 1190 | -10/Materials | Repaired Assault Rifle 1194 | -10/Materials | Learned location of Mines (-9) 1219 | -10/Materials | Repaired Assault Rifle 1251 | -10/Materials | Learned 2 Mines zone layouts 1334 | -10/Materials | Learned Storage garrison access intel 1359 | -10/Materials | Identified exit to Subcaves 1376 | -10/Materials | Identified exit to Materials 1376 | -10/Materials | Identified exit to Mines 1479 | -10/Materials | Entered Mines 1490 | -10/Mines | Core integrity fell below 50% 1524 | -10/Mines | Assembled infested the area 1529 | -10/Mines | Assisted by a Guerilla fighting off Assembled 1611 | -10/Mines | Lost 5 parts (1p2n1u1w) 1664 | -10/Mines | Core integrity fell below 20% 1673 | -10/Mines | Learned location of 1 exit from Materials 1754 | -10/Mines | Entered Materials 1754 | -9/Materials | Evolved 2 slots: Utility x1, Weapon x1 1755 | -9/Materials | Identified exit to Storage 1756 | -9/Materials | Identified exit to Materials 2001 | -9/Materials | Discovered new exit (range 7) 2458 | -9/Materials | Discovered exit to Storage (range 11) 2623 | -9/Materials | Discovered exit to Materials (range 12) 2805 | -9/Materials | Build established: Scavenger-Tank 2861 | -9/Materials | Discovered new exit (range 7) 2927 | -9/Materials | Discovered exit to Materials (range 16) 3113 | -9/Materials | Learned Storage stockpile data 3160 | -9/Materials | Learned location of Zion (-7) 3246 | -9/Materials | Learned 4 Materials zone layouts 3318 | -9/Materials | Learned Storage emergency access door positions 3354 | -9/Materials | First assault squad dispatched 3487 | -9/Materials | Entered Storage 3490 | -9/Storage | Loaded intel: 1 garrison access location 3703 | -9/Storage | Destroyed 8 combat bots 3756 | -9/Storage | Used back door to open Recycling access 3756 | -9/Storage | Discovered new exit (range 5) 3763 | -9/Storage | Entered Recycling 3957 | -9/Recycling | Scanned before Scraplab entrance 4000 | -9/Recycling | Build established: Scavenger-Gunner 4156 | -9/Recycling | Discovered new exit (range 16) 4348 | -9/Recycling | Identified exit to Factory 4493 | -9/Recycling | Learned Materials trap positions 4548 | -9/Recycling | Learned Materials stockpile data 4583 | -9/Recycling | Entered Scraplab 4593 | -9/Recycling | Learned Materials emergency access door positions 4596 | -9/Recycling | Discovered new exit (range 3) 4629 | -9/Recycling | Learned location of 2 exits from Materials 4808 | -9/Recycling | Learned location of 1 exit from Storage 4809 | -9/Recycling | Entered Scraptown 5234 | -9/Scraptown | Heard Great Nut preacher, LISTEN AND RECITE! 5241 | -9/Scraptown | Visited Red Mages 5306 | -9/Scraptown | Visited Assassins FH 5363 | -9/Scraptown | Visited CPS Storage 5382 | -9/Scraptown | Visited Fellowship of the Rings 5822 | -9/Scraptown | Visited Cyclists 5886 | -9/Scraptown | Visited Awakened 5958 | -9/Scraptown | Visited UFD Registry 5958 | -9/Scraptown | Registered with UFD as "Bladeslider" 6006 | -9/Scraptown | Entered Cyclist Reading Room 6162 | -9/Scraptown | Visited Cartography Club 6248 | -9/Scraptown | Found Deep Structural Scanner 6258 | -9/Scraptown | Learned location of Recycling (-9) 6258 | -9/Scraptown | Learned location of Hub_04(d) (-5) 6258 | -9/Scraptown | Learned location of Testing (-2) 6258 | -9/Scraptown | Learned 12 Factory zone layouts 6258 | -9/Scraptown | Learned 16 Factory zone layouts 6258 | -9/Scraptown | Learned 20 Factory zone layouts 6258 | -9/Scraptown | Learned 8 Research zone layouts 6258 | -9/Scraptown | Learned 4 Access zone layouts 6258 | -9/Scraptown | Learned 12 Upper Caves zone layouts 6258 | -9/Scraptown | Learned 24 Upper Caves zone layouts 6258 | -9/Scraptown | Learned 8 Proximity Caves zone layouts 6258 | -9/Scraptown | Learned 4 Hub_04(d) zone layouts 6258 | -9/Scraptown | Learned location of 1 exit from Factory 6258 | -9/Scraptown | Learned location of 2 exits from Upper Caves 6258 | -9/Scraptown | Identified exit to Factory 6381 | -9/Scraptown | Visited Scrap Suit Storage 6481 | -9/Scraptown | Build established: Mutant 6494 | -9/Scraptown | Visited Sword Containment 6518 | -9/Scraptown | Found Prototype Slashing Weapon 6518 | -9/Scraptown | Identified Companion Sword 6570 | -9/Scraptown | Visited Scrapoid Pod Storage 6601 | -9/Scraptown | Visited Junk Cannon Lab 6872 | -9/Scraptown | Visited DA-N13 Charitable Foundation 6894 | -9/Scraptown | Found DCF Scrap (28 items) 6975 | -9/Scraptown | Visited Junk Repository 7045 | -9/Scraptown | Visited Curators Association 7196 | -9/Scraptown | Build established: Derelict-Mutant 7899 | -9/Scraptown | Build established: Gladiator 8264 | -9/Scraptown | Met Optimus 8264 | -9/Scraptown | Accepted into 0bPrime 8365 | -9/Scraptown | Discovered exit to Factory (range 5) 8375 | -9/Scraptown | Entered Factory 8375 | -6/Factory | Evolved 6 slots: Power x1, Propulsion x2, Utility x3 8376 | -6/Factory | Identified exit to Factory 8377 | -6/Factory | Identified exit to Lower Caves 8563 | -6/Factory | Loaded intel: 8 recycling unit locations 8676 | -6/Factory | Build established: Scavenger-Gladiator 9116 | -6/Factory | Repaired Lgt. Treads 9152 | -6/Factory | Learned location of Protoforge (-3) 9216 | -6/Factory | Central database locked down 9296 | -6/Factory | Entered Lower Caves 9489 | -6/Lower Caves | Attracted the attention of an 0b10 checkpoint 9531 | -6/Lower Caves | Learned Factory emergency access door positions 9834 | -6/Lower Caves | Lost 9 parts (1p3n4u1w) 10273 | -6/Lower Caves | Discovered new exit (range 14) 10293 | -6/Lower Caves | Identified exit to Lower Caves 10410 | -6/Lower Caves | Entered another Lower Caves area 10466 | -6/Lower Caves | Found Alien Artifact 10466 | -6/Lower Caves | Identified Core Expander 10466 | -6/Lower Caves | Installed Core Expander, added new Weapon slot 10684 | -6/Lower Caves | Learned 8 Factory zone layouts 10765 | -6/Lower Caves | Discovered new exit (range 8) 10776 | -6/Lower Caves | Identified exit to Data Miner 10778 | -6/Lower Caves | Entered Data Miner 10778 | -6/Data Miner | Discovered new exit (range 6) 10809 | -6/Data Miner | Met Data Miner 10836 | -6/Data Miner | Learned location of Section 7 (-3) 10836 | -6/Data Miner | Acquired the access code to Warlord's prototype stash 10868 | -6/Data Miner | Received God Mode back door access code from Data Miner 10906 | -6/Data Miner | Identified exit to Proximity Caves 10908 | -6/Data Miner | Entered Proximity Caves 10991 | -5/Proximity Caves | Attracted the attention of an 0b10 checkpoint 11065 | -5/Proximity Caves | Learned Factory garrison access intel 11070 | -5/Proximity Caves | Learned Factory machine intel 11260 | -5/Proximity Caves | Discovered exit to Factory (range 3) 11286 | -5/Proximity Caves | Acquired the password to a Derelict Tinkerer's latest research 11296 | -5/Proximity Caves | Found Prototype Special Weapon 11296 | -5/Proximity Caves | Identified Molecular Deconstructor 11318 | -5/Proximity Caves | Entered Factory 11318 | -5/Factory | Evolved 2 slots: Propulsion x1, Utility x1 11319 | -5/Factory | Identified exit to Upper Caves 11319 | -5/Factory | Identified exit to Extension 11322 | -5/Factory | Loaded intel: 290 machine locations 11323 | -5/Factory | Loaded intel: 4 garrison access locations 11530 | -5/Factory | Incoming investigation squad redirected 11684 | -5/Factory | Fabricated Enh. Armored Leg (x1) 11851 | -5/Factory | Loaded intel: 8 recycling unit locations 12062 | -5/Factory | Lost 18 parts (3p10n3u2w) 12081 | -5/Factory | System corruption reached 10% 12162 | -5/Factory | Spotted B-75 Beast 12296 | -5/Factory | Incoming investigation squad redirected 12338 | -5/Factory | Entered Extension 12379 | -5/Extension | Core integrity fell below 50% 12683 | -5/Extension | Rescued A7 12689 | -5/Extension | Energy Cycler disabled 12689 | -5/Extension | Rescued a captive Derelict 12689 | -5/Extension | Rescued a captive Derelict 12691 | -5/Extension | Rescued a captive Derelict 12692 | -5/Extension | Rescued a captive Derelict 12695 | -5/Extension | Rescued a captive Derelict 12695 | -5/Extension | Rescued a captive Derelict 12700 | -5/Extension | Rescued a captive Derelict 12701 | -5/Extension | Rescued a captive Derelict 12702 | -5/Extension | Rescued a captive Derelict 12720 | -5/Extension | Lost 3 allies 12781 | -5/Extension | Lost 4 parts (3u1w) 12926 | -5/Extension | Spotted B-75 Beast 12933 | -5/Extension | Spotted B-75 Beast 12939 | -5/Extension | Discovered new exit (range 17) 12951 | -5/Extension | Destroyed B-75 Beast 12961 | -5/Extension | Allies destroyed B-75 Beast 13314 | -5/Extension | Discovered new exit (range 10) 13328 | -5/Extension | Discovered new exit (range 6) 13387 | -5/Extension | Entered Cetus 13387 | -5/Cetus | Accompanied by 8 allies (A7) 13392 | -5/Cetus | Acquired a Cetus Manufacturing Module code from A7 13408 | -5/Cetus | Spotted Cetus Guard 13408 | -5/Cetus | Spotted Cetus Guard 13417 | -5/Cetus | Spotted Cetus Guard 13418 | -5/Cetus | Allies destroyed Cetus Guard 13419 | -5/Cetus | Destroyed Cetus Guard 13419 | -5/Cetus | Destroyed Cetus Guard 13422 | -5/Cetus | Spotted Cetus Guard 13433 | -5/Cetus | Allies destroyed Cetus Guard 13449 | -5/Cetus | Lost 3 parts (1p2n) 13476 | -5/Cetus | Started Cetus Manufacturing Module 13501 | -5/Cetus | Manufactured an Enhanced Grunt 13526 | -5/Cetus | Manufactured an Enhanced Grunt 13551 | -5/Cetus | Manufactured an Enhanced Grunt 13568 | -5/Cetus | Murdered A7 13571 | -5/Cetus | Extracted ID and sensor layout for unrecognized location from A7's data core 13576 | -5/Cetus | Manufactured an Enhanced Grunt 13578 | -5/Cetus | Lost 3 allies 13601 | -5/Cetus | Manufactured an Enhanced Grunt 13658 | -5/Cetus | Discovered new exit (range 18) 13685 | -5/Cetus | Spotted Cetus Guard 13685 | -5/Cetus | Spotted Cetus Guard 13690 | -5/Cetus | Spotted Cetus Guard 13690 | -5/Cetus | Spotted Cetus Guard 13691 | -5/Cetus | Allies destroyed Cetus Guard 13710 | -5/Cetus | Discovered new exit (range 18) 13714 | -5/Cetus | Allies destroyed Cetus Guard 13719 | -5/Cetus | Allies destroyed Cetus Guard 13723 | -5/Cetus | Allies destroyed Cetus Guard 13751 | -5/Cetus | Lost 4 allies 13754 | -5/Cetus | Met Revision 17 13824 | -5/Cetus | Entered Factory 13824 | -4/Factory | Accompanied by 2 allies 13824 | -4/Factory | Evolved 2 slots: Utility x2 13825 | -4/Factory | Identified exit to Upper Caves 13842 | -4/Factory | Watched by a mysterious "MATRIX" hacker. 13842 | -4/Factory | Loaded intel: 8 recycling unit locations 13988 | -4/Factory | Build established: Scavenger-Mutant 14287 | -4/Factory | Lost 4 parts (4u) 14408 | -4/Factory | Incoming investigation squad redirected 14520 | -4/Factory | Lost 3 parts (1p2u) 14605 | -4/Factory | Identified exit to Research 14620 | -4/Factory | Lost 3 parts (1p2n) 14797 | -4/Factory | Entered Research 14797 | -3/Research | Evolved 2 slots: Power x1, Utility x1 14798 | -3/Research | Identified exit to Research 14817 | -3/Research | Build established: Scavenger-Assassin 14860 | -3/Research | Destroyed 7 combat bots 14914 | -3/Research | Lost 12 parts (2p5n4u1w) 14997 | -3/Research | Revision forces began assault on 0b10 15047 | -3/Research | Met up with Revision 17++ 15068 | -3/Research | Lost 6 parts (3p1n2u) 15116 | -3/Research | Loaded intel: 5 recycling unit locations 15190 | -3/Research | Spotted B-86 Titan 15424 | -3/Research | Build established: Scavenger-Mutant 15442 | -3/Research | Lost 4 allies 15497 | -3/Research | Research terminal network offline 15566 | -3/Research | Fabricated Hcp. Storage Unit (x1) 16207 | -3/Research | Build established: Scavenger-Assassin 16334 | -3/Research | Spotted Striker 16357 | -3/Research | Discovered exit to Research (range 15) 16616 | -3/Research | Discovered new exit (range 16) 16633 | -3/Research | Identified exit to Quarantine 16634 | -3/Research | Entered Quarantine 16689 | -3/Quarantine | Cryocooling Duct disabled 16704 | -3/Quarantine | Ambient heat levels rising (+20) 16704 | -3/Quarantine | Non-combat units ordered to evacuate 16913 | -3/Quarantine | Found Alien Artifact 17173 | -3/Quarantine | System corruption reached 10% 17176 | -3/Quarantine | Core integrity fell below 50% 17200 | -3/Quarantine | Lost 3 parts (2p1n) 17233 | -3/Quarantine | Found Alien Artifact 17241 | -3/Quarantine | Found Alien Artifact 17306 | -3/Quarantine | Found Alien Reactor 17307 | -3/Quarantine | Identified Matter Drive 17358 | -3/Quarantine | Found Alien Artifact 17358 | -3/Quarantine | Identified Phase Armor 17372 | -3/Quarantine | Discovered exit to Research (range 13) 17469 | -3/Quarantine | Spotted Fortress 17543 | -3/Quarantine | Discovered new exit (range 6) 17543 | -3/Quarantine | Discovered new exit (range 7) 17548 | -3/Quarantine | Identified exit to Protoforge 17552 | -3/Quarantine | Identified exit to Section 7 17556 | -3/Quarantine | Entered Protoforge 17557 | -3/Protoforge | Forged Quantum Companion 17560 | -3/Protoforge | Identified Subatomic Replicator 17560 | -3/Protoforge | Forged Prototype Slashing Weapon 17769 | -3/Protoforge | Spotted Hotshot 17775 | -3/Protoforge | Spotted Hotshot 17776 | -3/Protoforge | Superfortress began startup sequence 17793 | -3/Protoforge | Destroyed Hotshot 17807 | -3/Protoforge | Destroyed Hotshot 17854 | -3/Protoforge | Spotted EXE-6 17854 | -3/Protoforge | Spotted EXE-6 17887 | -3/Protoforge | Core integrity fell below 20% 17901 | -3/Protoforge | Destroyed EXE-6 17903 | -3/Protoforge | Destroyed EXE-6 17907 | -3/Protoforge | Spotted Decapitator 17911 | -3/Protoforge | Spotted Decapitator 17913 | -3/Protoforge | Found Prototype Processor 17913 | -3/Protoforge | Identified Exp. Core Analyzer 17917 | -3/Protoforge | Lost 5 parts (1p3n1u) 17946 | -3/Protoforge | Destroyed Decapitator 17946 | -3/Protoforge | Destroyed Decapitator 18016 | -3/Protoforge | UFD initiated attack on Protoforge (Readiness: High) 18016 | -3/Protoforge | Loaded intel: 3 recycling unit locations 18058 | -3/Protoforge | Optimus greeted in Protoforge 18065 | -3/Protoforge | Identified Dimensional Node Initializer 18065 | -3/Protoforge | Initialized slip node 18087 | -3/Protoforge | Build established: Scavenger-Mutant 18106 | -3/Protoforge | Found Prototype Processor 18106 | -3/Protoforge | Identified Exp. Armor Integrity Analyzer 18122 | -3/Protoforge | Lost 5 allies 18126 | -3/Protoforge | Found Exp. Core Analyzer 18142 | -3/Protoforge | Found Prototype Device 18142 | -3/Protoforge | Identified Exp. Kinecellerator 18146 | -3/Protoforge | Found Scrap Suit 18202 | -3/Protoforge | Found UFD Drillbomb 18329 | -3/Protoforge | Spotted Decapitator 18329 | -3/Protoforge | Spotted Decapitator 18376 | -3/Protoforge | Spotted Hotshot 18439 | -3/Protoforge | Spotted Striker 18460 | -3/Protoforge | Spotted Executioner 18471 | -3/Protoforge | Spotted Striker 18477 | -3/Protoforge | Installed UFD Drillbomb at designated target 18477 | -3/Protoforge | UFD reported confirmed Drillbomb installation 18503 | -3/Protoforge | Installed UFD Drillbomb at designated target 18503 | -3/Protoforge | UFD reported confirmed Drillbomb installation 18520 | -3/Protoforge | Lost 4 allies 18540 | -3/Protoforge | Spotted Immortal 18541 | -3/Protoforge | Spotted Immortal 18541 | -3/Protoforge | Spotted Immortal 18636 | -3/Protoforge | Found UFD Drillbomb 18700 | -3/Protoforge | Spotted Striker 18722 | -3/Protoforge | UFD reported confirmed Drillbomb installation 18802 | -3/Protoforge | Installed UFD Drillbomb at designated target 18802 | -3/Protoforge | UFD reported confirmed Drillbomb installation 18838 | -3/Protoforge | Found UFD Drillbomb 18948 | -3/Protoforge | Spotted Executioner 18950 | -3/Protoforge | Lost 3 allies 18954 | -3/Protoforge | Identified Hpw. Transdimensional Reconstructor 18954 | -3/Protoforge | Warped through subspace to slip node 18982 | -3/Protoforge | Forge Plexus network access discovered 19087 | -3/Protoforge | UFD reported confirmed Drillbomb installation 19095 | -3/Protoforge | Spotted Hotshot 19201 | -3/Protoforge | UFD reported confirmed Drillbomb installation 19393 | -3/Protoforge | Installed UFD Drillbomb at designated target 19393 | -3/Protoforge | UFD reported confirmed Drillbomb installation 19557 | -3/Protoforge | Spotted Executioner 19568 | -3/Protoforge | Found UFD Drillbomb 19577 | -3/Protoforge | Spotted Striker 19732 | -3/Protoforge | Installed UFD Drillbomb at designated target 19732 | -3/Protoforge | UFD reported confirmed Drillbomb installation 20001 | -3/Protoforge | Spotted Executioner 20003 | -3/Protoforge | Spotted Executioner 20065 | -3/Protoforge | Found UFD Drillbomb 20102 | -3/Protoforge | Spotted Hotshot 20109 | -3/Protoforge | Spotted Hotshot 20109 | -3/Protoforge | Spotted Hotshot 20198 | -3/Protoforge | UFD reported confirmed Drillbomb installation 20214 | -3/Protoforge | Spotted Executioner 20238 | -3/Protoforge | Spotted Executioner 20239 | -3/Protoforge | Spotted Striker 20301 | -3/Protoforge | Lost 4 allies 20324 | -3/Protoforge | Spotted Striker 20356 | -3/Protoforge | Spotted Executioner 20356 | -3/Protoforge | Spotted Striker 20402 | -3/Protoforge | Lost 6 allies 20426 | -3/Protoforge | Spotted Striker 20491 | -3/Protoforge | Lost 5 allies 20500 | -3/Protoforge | Spotted Executioner 20500 | -3/Protoforge | Spotted Striker 20500 | -3/Protoforge | Spotted Executioner 20536 | -3/Protoforge | Destroyed by Striker with Plasma Lance Last Messages --------------- 20525_ Penetrated by Slug. 20525_ Phase Armor destroyed. 20527_ Acquired 10 matter. 20528_ Slug penetrates P-80 Master. 20528_ Slug penetrates Wall. 20528_ Slug penetrates Striker. 20529_ P-80 Master resets Striker, system corruption cleaned. The surroundings shift and blur. 20531_ Slug penetrates Pattern Transfigurator. 20531_ Redirected attack with Superquantum Companion. 20531_ Pattern Transfigurator disabled. 20532_ OZ-K6Z(j) destroyed. 20534_ Slug penetrates Pattern Transfigurator. 20534_ Penetrated by Slug. 20534_ Slug penetrates Pattern Transfigurator. 20534_ P-80 Master resets Executioner, system corruption cleaned. Map ----- +----------------------------------------------------+ | ??????????###????##??" """ " ??? #"*!=! %% % # | | ??????????###????##### " ??? "%[% %%%% "#" | | ??????????##???#######% ! " ? ?? "=% % "## | | ??????????##??? ###"#"[!!]""###"###"" %% % "" | | ??????????##???#" !!%|=% ??? % %% "%#" " " | | ??????????##???## =|[%*! ???? =% ##"%#"T | | ??????????##???#; [!%!!%/ ???? !% !!%% " % | | ????########???## =!*!=[% ????? !=*! "!% | | ????########???## *%/%#[!""######!!!!!%=%"" ""/# | | ????##????????### =*#=####;#####!=[ =!! % % % [ | | ######????????? ; # [ !!*%[!!==|% %%% % | | #################% # "" !*]%=]#;%=!%]% % %% | | ######"##"####### ! %# %"" *%[![!*!!%=*=! !% =%" | | & ^% !!! *E!%%!% #=%[%" !!% %!![%!!=%!= % | | !% [%* !!%!!E[%;=!% " !%! % ;;% %!=[%[%=%%! | | % *%=]!![[=![;*%= % %[% %%; %!"%**[! % % | | %=% [ "%!! *= ;%!=;;;;;[;;;;;; %%%%=%= " | | ###"#####"##;#### %/= %p %; =! %% %!!%%!% | | ##?"""""" # =%! %;;; "%%%%% % ="%"%% | | ##?""S""" " " %; p % % %%% %%%%%%%%%%%%% | | ##??? """ # ; b ;%%;%%%%%&% %"" %%%" | | ##? " " # ; = %#;! =;;%!=![!=![=&" | | ?# ?# # =%;;!%/! %%%[*=!!!*" | | ## ?# ; ;%%!== =%%!&%%[!*!! | | ####""%##*##+###"% # K "" ;;*%%% !![!*=%*!! " | | ### ?? !??! # @ " ;#%[" ![!!%%%!! | | ??? ?? [!%% % # #; %# "!!!#*!! " | | ?? =%==% # " ##% %"#""" #=!"="#"" | | "" """" !""%% # """ ## ## "%"" | | "" "?? """=[!##"##### "" ## ## "" %" """ | | "" "??" ? # ##### ## ## " " " #" | | "" ???? ?"#"#########;##### ## " "" " " | | ???? ????????? ??? + """ """" # | | ???? ? ????????? ?? # "" " """" ## | | ??? ????????? ?? + " " """" ## | | ???? ? ????????? ? # =!* ## | | ####??"# #############?? ######+# !%!*[ ## | | ####??## ??#############?? #??????# [=%! ## | | ########???##?????????##?? #????? # | ## | | #############?????????##?? #??????# ## | | ##????#######?????????##?? #??????######+##+##### | | ##????????????????????##?? + ?????###### ##### | | ##????????????????????##?? #?"????##??## ##??? | | ##????????????????????#######??????###### ##??? | | ##?#?????#????????????#######???? ?###### ##??? | | ##?????????????????????????##???? ?#????# ##??? | | ##??#??????????????????????##?"????# ???# ##??? | | ##?????????????????????????##??????#????# ##### | | ##?????????????????????????##???????????# ##### | | ##?????????????????????????##?? ???#????+ | +----------------------------------------------------+ Best States ------------- Heat Dissipation 62 Coolant Potential 100 Energy Generation 62 Energy Capacity 575 Matter Stores 500 Matter Capacity 500 Sight Range 23 Robot Scan Range 16 Terrain Scan Range 20 Terrain Scan Density 110 ECM Strength 2 Jamming Range 12 Additional Mass Support 16 Armor Coverage 825 Resistance: TH 10 Core Shielding 30 Propulsion Shielding 33 Weapon Shielding 90 Melee Speed Boost 40 Phase Shifting 10 Evasion (%) 70 Targeting Accuracy 6 Melee Accuracy 16 Target Analysis 5 Core Analysis 8 Armor Integrity Analysis 50 Recoil Reduction 5 Energy Filtering 50 Offensive Hacking 10 Defensive Hacking 10 Item Schematics ----------------- Hcp. Storage Unit | -9/Materials | Hacked Imp. Targeting Computer | -9/Materials | Hacked Combat Drone Bay | -6/Data Miner | Free Lgt. Regenerative Plating | -6/Data Miner | Free Enh. Armored Leg | -6/Data Miner | Free Exp. Heat Sink | -6/Data Miner | Free Imp. KE Penetrator | -6/Data Miner | Free Adv. Surge Thruster | -6/Data Miner | Free Adv. Actuator Array | -6/Data Miner | Free Hvy. Gauss Cannon | -6/Data Miner | Free Imp. Launcher Guidance Computer | -6/Data Miner | Free Imp. Gyrokinetic Inverter | -6/Data Miner | Free Railgun | -6/Data Miner | Free Biometal Medium Treads | -6/Data Miner | Free Particle Reactor | -6/Data Miner | Free Robot Schematics ------------------ Y-64 Sentinel | -6/Data Miner | Free A-15 Conveyor | -6/Data Miner | Free L-41 Fighter | -6/Data Miner | Free B-60 Warrior | -6/Data Miner | Free H-66 Slayer | -6/Data Miner | Free Fabricated ------------ Enh. Armored Leg | x1 | -5/Factory Hcp. Storage Unit | x1 | -3/Research Repaired ---------- Assault Rifle | 16% | -10/Materials Assault Rifle | 33% | -10/Materials Lgt. Treads | 12% | -6/Factory Studied --------- Imp. Ion Engine | -6/Factory | Hacked Lgt. Ion Engine | -6/Factory | Hacked Lgt. Treads | -6/Factory | Hacked Lrn. Missile Launcher | -6/Factory | Hacked Mic. Nuclear Core | -6/Factory | Hacked Hvy. EM Pulse Gun | -6/Factory | Hacked EM Pulse Gun | -6/Factory | Hacked Flexi-carbon Leg | -3/Quarantine | Hacked Lgt. Antimatter Reactor | -3/Protoforge | Hacked Mic. Antimatter Reactor | -3/Protoforge | Hacked Alien Tech Used ----------------- Core Expander Matter Drive Phase Armor Subatomic Replicator Dimensional Node Initializer High-powered Transdimensional Reconstructor Achievements -------------- Ambidextrous Drive-By Friends Forever Inventory(Loot) We Love MA Challenges ------------ None Game ------ Seed ShiftDefenseDeflector Manual? 0 Play Time 04:00:26 Cumulative 200.1 hours Start 2026.04.11 @ 02:12:38 End 2026.04.12 @ 01:53:06 Sessions 15 Manual Loads 0 Difficulty Rogue Special Mode None Game No. 77 Rogue 77 Adventurer 0 Explorer 0 Win Type - Total 6 Types 2/0/1/2/0/0/0/1/0/0 Lore% 58 Gallery% 58 Achievement% 54 Wizard Run 0 Options --------- Layout 2 ASCII 0 Keyboard 1 Movement Numpad Keybinds 0 Fullscreen 2 Font 24/Smallcaps Map View 50x44 Zoom Use 0% Tactical HUD 1 Map Filters NONE Filters NONE Steam 1 RUN: 443dfe64-4279-4b4a-8afa-ed47e62986e2